fUST/lending_fUST_20260202
["ID","MTS","AMOUNT","RATE_DAILY","PERIOD"]
[404279856,1770027032907,-630.34554009,0.00047023,2]
[404279857,1770027032916,-75951.563747,0.00047026,60]
[404279858,1770027032926,-4929.89829589,0.00047113,4]
[404279859,1770027032938,-397.80214588,0.00047113,4]
[404279860,1770027037945,511.19552366,0.0003921,15]
[404279861,1770027037973,600.0,0.0003921,15]
[404279862,1770027038001,322.62216847,0.0003921,15]
[404279863,1770027038133,500.80849454,0.0003921,7]
[404279903,1770027038711,-199.00495098,0.00046989,120]
[404279904,1770027038720,-5625.78834549,0.00047113,4]
[404279906,1770027039573,-2250.89370904,0.00047113,4]
[404279907,1770027039585,-355.1291536,0.00047113,4]
[404279908,1770027039594,-2426.6687815,0.00047123,2]
[404279909,1770027039603,-5.86904365,0.00047123,2]
[404279910,1770027039614,-815.99939513,0.00047123,2]
[404279911,1770027040014,-1100.26644602,0.00047123,2]
[404279912,1770027040023,-3953.4482459,0.00047123,2]
[404279913,1770027040032,-15007.1347131,0.00047123,2]
[404279914,1770027040043,-1168.051046,0.00047123,2]
[404279915,1770027040053,-13559.5116499,0.00047131,4]
[404279916,1770027040064,-151.0,0.00047141,120]
[404279917,1770027040074,-151.0,0.00047141,120]
[404279918,1770027040083,-171.158603,0.00047141,120]
[404279919,1770027040093,-187.44564414,0.00047229,7]
[404279920,1770027040101,-345.064888,0.00047263,120]
[404279921,1770027040110,-345.064888,0.00047263,120]
[404279922,1770027040119,-345.064888,0.00047263,120]
[404279923,1770027040129,-345.064888,0.00047263,120]
[404279924,1770027040138,-452.09234469,0.00047263,60]
[404280326,1770027045092,-20052.82369996,0.00047263,60]
[404280328,1770027045103,-636.25873907,0.00047263,60]
[404280330,1770027045115,-435.015,0.00047263,60]
[404280478,1770027046834,-52531.88940528,0.00047263,60]
[404280480,1770027046844,-27119.0232999,0.00047426,4]
[404280482,1770027046853,-642.23835154,0.00047432,7]
[404280484,1770027046863,-345.064888,0.00047436,120]
[404280486,1770027046875,-345.064888,0.00047436,120]
[404280488,1770027046884,-345.064888,0.00047436,120]
[404280490,1770027046895,-345.064888,0.00047436,120]
[404280492,1770027046904,-405.31759068,0.0004751,4]
[404280495,1770027046919,-3721.82153244,0.0004751,4]
[404280518,1770027047319,5000.0,0.00039211,20]
[404280533,1770027058974,552.5262489,0.00035364,2]
[404280534,1770027069780,5000.0,0.00039211,20]
[404280535,1770027074415,300.0,0.00013673,2]
[404280536,1770027074482,600.0,0.00014221,2]
[404280537,1770027074532,300.0,0.00014768,2]
[404280538,1770027078223,500.0,0.00013699,2]
[404280539,1770027078279,349.71421088,0.00014247,2]
[404280540,1770027080597,500.0,0.00013699,2]
[404280541,1770027080641,1000.0,0.00014247,2]
[404280542,1770027080702,500.0,0.00014795,2]
[404280543,1770027092238,500.0,0.00037521,120]
[404280544,1770027092316,5000.0,0.00039211,20]
[404280545,1770027092475,500.0,0.00042999,120]
[404280547,1770027115061,5000.0,0.00039211,20]
[404280548,1770027137624,3637.86287075,0.00039211,20]
[404280604,1770027310484,500.0,0.00013699,2]
[404280631,1770027420675,-5000.0,0.00024411,2]
[404280799,1770027724266,310000.0,0.00039219,20]
[404280838,1770027754422,-254.7,0.0002,2]
[404280843,1770027756435,-454.74726321,0.0002,2]
[404280844,1770027758549,-235.50935092,0.0002,2]
[404280845,1770027760709,-287.99750527,0.0002,2]
[404280846,1770027762832,-310.95791625,0.0002,2]
[404280849,1770028027139,-204.38386516,0.00019799,2]
[404280850,1770028145171,-5000.0,0.000197,2]
[404280851,1770028145192,-1200.0,0.00019899,2]
[404280852,1770028145216,-300.0,0.00019899,2]
[404280853,1770028145236,-2719.25848222,0.000199,2]
[404280854,1770028145257,-532.47716516,0.000199,2]
[404280855,1770028145278,-1610.07016233,0.000199,2]
[404280856,1770028145298,-1638.46,0.0001999,3]
[404280857,1770028145317,-819.23,0.0001999,3]
[404280858,1770028145336,-409.62,0.0001999,3]
[404280859,1770028145356,-185.17245754,0.00019999,2]
[404280860,1770028145389,-500.0,0.00019999,2]
[404280861,1770028145410,-160909.74355505,0.0002,2]
[404280862,1770028147174,-137546.3444093,0.0002,2]
[404280863,1770028147199,-309.77,0.0002,2]
[404280864,1770028147220,-3276.92,0.0002136,3]
[404280865,1770028147240,-1638.46,0.0002136,3]
[404280866,1770028147260,-819.24,0.0002136,3]
[404280867,1770028147282,-420.0,0.0002167,2]
[404280868,1770028147302,-304.0,0.00023611,2]
[404280869,1770028147322,-356.0,0.00023828,2]
[404280870,1770028147342,-150.0,0.00024658,2]
[404280871,1770028147363,-54164.0589786,0.000249,2]
[404280872,1770028147382,-250.0,0.00025205,2]
[404280873,1770028147403,-300.63898669,0.00025753,2]
[404280874,1770028147426,-1740.71919887,0.00026,30]
[404280875,1770028147445,-1041.66666667,0.00029,10]
[404280876,1770028147467,-403.62377021,0.0003,30]
[404280877,1770028147489,-8561.19098871,0.00032,2]
[404280878,1770028147508,-10832.8117957,0.00034918,2]
[404280879,1770028147527,-334.94188757,0.00034927,120]
[404280880,1770028147547,-166.957,0.00034927,40]
[404280881,1770028147567,-500.0,0.00034927,120]
[404280882,1770028147587,-26523.7784214,0.00034928,2]
[404280883,1770028147608,-1753.58376999,0.00035,5]
[404280884,1770028147629,-264.21834053,0.00035,120]
[404280885,1770028147649,-150.0,0.00035176,60]
[404280886,1770028147668,-490.612781,0.00035176,60]
[404280887,1770028147686,-831.225562,0.00035176,60]
[404280888,1770028147707,-1171.838343,0.00035176,60]
[404280889,1770028147728,-1512.451124,0.00035176,60]
[404280890,1770028147747,-1853.063905,0.00035176,60]
[404280891,1770028147766,-2193.676686,0.00035176,60]
[404280892,1770028147785,-2534.289467,0.00035176,60]
[404280893,1770028147805,-2874.902248,0.00035176,60]
[404280894,1770028147824,-3215.515029,0.00035176,60]
[404280895,1770028147844,-150.0,0.00035193,60]
[404280896,1770028147864,-395.222409,0.00035193,60]
[404280897,1770028147883,-640.444818,0.00035193,60]
[404280898,1770028147903,-885.667227,0.00035193,60]
[404280899,1770028147922,-1130.889636,0.00035193,60]
[404280900,1770028147941,-1376.112046,0.00035193,60]
[404280901,1770028147960,-1621.334455,0.00035193,60]
[404280902,1770028147981,-1866.556864,0.00035193,60]
[404280903,1770028148001,-2111.779273,0.00035193,60]
[404280904,1770028148022,-2357.001683,0.00035193,60]
[404280905,1770028148042,-27096.02939447,0.00036,30]
[404280906,1770028148061,-164.527305,0.00036036,60]
[404280907,1770028148082,-152.11,0.00036471,60]
[404280908,1770028148102,-152.11,0.00036571,60]
[404280909,1770028148127,-152.11,0.00036671,60]
[404280910,1770028148148,-152.11,0.00036771,60]
[404280911,1770028148171,-152.11,0.00036871,60]
[404280912,1770028148193,-152.11,0.00036971,60]
[404280913,1770028148215,-152.11,0.00037071,60]
[404280914,1770028148241,-152.11,0.00037171,60]
[404280915,1770028148261,-309.77,0.000372,30]
[404280916,1770028148284,-152.11,0.00037271,60]
[404280917,1770028148304,-152.11,0.00037371,60]
[404280918,1770028148325,-152.11,0.00037471,60]
[404280919,1770028148345,-152.11,0.00037571,60]
[404280920,1770028148364,-152.11,0.00037671,60]
[404280921,1770028148384,-152.11,0.00037771,60]
[404280922,1770028148406,-150.0,0.00037833,120]
[404280923,1770028148426,-152.11,0.00037871,60]
[404280924,1770028148447,-152.11,0.00037971,60]
[404280925,1770028148468,-152.11,0.00038071,60]
[404280926,1770028148489,-152.11,0.00038171,60]
[404280927,1770028148510,-152.11,0.00038271,60]
[404280928,1770028148531,-152.11,0.00038371,120]
[404280929,1770028148551,-152.11,0.00038471,120]
[404280930,1770028148575,-152.11,0.00038571,120]
[404280931,1770028148595,-152.11,0.00038671,120]
[404280932,1770028148616,-600.0,0.0003873,60]
[404280933,1770028148637,-152.11,0.00038771,120]
[404280934,1770028148657,-152.11,0.00038871,120]
[404280935,1770028148677,-152.11,0.00038971,120]
[404280936,1770028148696,-10832.8117957,0.00039008,3]
[404280937,1770028148718,-740.75809701,0.00039008,3]
[404280938,1770028148739,-151.0,0.00039018,120]
[404280939,1770028148830,-151.0,0.00039018,120]
[404280940,1770028148849,-171.514878,0.00039018,120]
[404280941,1770028148871,-152.11,0.00039071,120]
[404280942,1770028148891,-10832.8117957,0.00039074,3]
[404280943,1770028148911,-54689.619226,0.00039084,60]
[404280944,1770028148931,-10832.8117957,0.00039093,3]
[404280945,1770028148963,-39309.54198701,0.00039103,60]
[404280946,1770028150080,-204.81,0.0002489,3]
[404280947,1770028150103,-409.62,0.0002626,3]
[404280948,1770028150126,-1429.23536399,0.00039103,60]
[404280949,1770028150146,-152.11,0.00039171,120]
[404280950,1770028150168,-152.11,0.00039271,120]
[404280951,1770028150188,-152.11,0.00039371,120]
[404280952,1770028150209,-151.0,0.00039398,120]
[404280953,1770028150230,-152.11,0.00039471,120]
[404280954,1770028150249,-392.51829415,0.000395,14]
[404280955,1770028174116,-5000.0,0.00039219,20]
[404280956,1770028174135,-3227.18170585,0.000395,14]
[404280957,1770028174156,-152.11,0.00039571,120]
[404280958,1770028174183,-152.11,0.00039671,120]
[404280959,1770028174214,-152.11,0.00039771,120]
[404280960,1770028174240,-177.0,0.00039833,120]
[404280961,1770028174269,-152.11,0.00039871,120]
[404280962,1770028174296,-152.11,0.00039971,120]
[404280963,1770028174323,-152.11,0.00040071,120]
[404280964,1770028174349,-152.11,0.00040171,120]
[404280965,1770028174378,-152.11,0.00040271,120]
[404280966,1770028174407,-152.11,0.00040371,120]
[404280967,1770028174435,-150.0,0.00040419,60]
[404280968,1770028174462,-404.555537,0.00040419,60]
[404280969,1770028174488,-659.111074,0.00040419,60]
[404280970,1770028174513,-913.666611,0.00040419,60]
[404280971,1770028174539,-1094.94674564,0.00040419,60]
[404280996,1770028231623,-500.0,0.00019999,2]
[404280997,1770028231633,-1078.9641383,0.00038482,2]
[404280998,1770028231643,-1339.52817049,0.00039219,20]
[404280999,1770028231652,-300.0,0.0004,120]
[404281000,1770028231663,-73.27540236,0.00040419,60]
[404281001,1770028231672,-1422.777686,0.00040419,60]
[404281002,1770028231682,-1677.333223,0.00040419,60]
[404281003,1770028231691,-932.26227417,0.00040419,60]
[404281004,1770028231703,-999.62648583,0.00040419,60]
[404281005,1770028231713,-2186.444297,0.00040419,60]
[404281006,1770028231723,-2440.999835,0.00040419,60]
[404281007,1770028231734,-152.11,0.00040471,120]
[404281008,1770028231744,-152.11,0.00040571,120]
[404281009,1770028231756,-500.0,0.00040601,120]
[404281010,1770028231766,-500.0,0.00040601,120]
[404281011,1770028231776,-151.0,0.00040601,120]
[404281012,1770028231786,-617.239779,0.00040601,120]
[404281013,1770028231795,-152.11,0.00040671,120]
[404281014,1770028231805,-152.11,0.00040771,120]
[404281015,1770028231814,-152.11,0.00040871,120]
[404281016,1770028231823,-152.11,0.00040971,120]
[404281017,1770028231833,-152.11,0.00041071,120]
[404281018,1770028231843,-281.63005824,0.00041096,2]
[404281019,1770028231855,-152.11,0.00041171,120]
[404281020,1770028231865,-600.0,0.00041227,60]
[404281021,1770028231874,-300.0,0.00041227,60]
[404281022,1770028231884,-152.11,0.00041271,120]
[404281023,1770028231894,-152.11,0.00041371,120]
[404281024,1770028231903,-2107.14,0.00041371,120]
[404281025,1770028231912,-152.11,0.00041471,120]
[404281026,1770028231922,-152.11,0.00041571,120]
[404281027,1770028231933,-3619.7,0.000416,14]
[404281028,1770028231943,-152.11,0.00041671,120]
[404281029,1770028231953,-152.11,0.00041771,120]
[404281030,1770028231963,-204.0,0.00041833,120]
[404281031,1770028231972,-657.34377411,0.00041861,3]
[404281032,1770028231983,-83.4143229,0.00041861,3]
[404281033,1770028231993,-405.52223987,0.00041861,3]
[404281034,1770028232004,-1079.27782078,0.00041861,3]
[404281035,1770028232016,-1930.03967507,0.00041861,3]
[404281036,1770028232027,-534.54761844,0.00041861,3]
[404281037,1770028232038,-1046.39845533,0.00041861,3]
[404281051,1770028237664,-150.0,0.00040419,60]
[404281052,1770028237673,-166.8067,0.00040419,60]
[404281053,1770028237683,-499.64189513,0.00041861,3]
[404281070,1770028239964,-183.6134,0.00040419,60]
[404281072,1770028239974,-200.420101,0.00040419,60]
[404281074,1770028239984,-442.58507751,0.00041861,3]
[404281470,1770028243961,-217.226801,0.00040419,60]
[404281472,1770028243970,-234.033501,0.00040419,60]
[404281474,1770028243979,-250.840202,0.00040419,60]
[404281476,1770028243990,-267.646902,0.00040419,60]
[404281478,1770028243999,-284.453602,0.00040419,60]
[404281480,1770028244009,-4894.79901357,0.00041861,3]
[404281482,1770028244019,-152.11,0.00041871,120]
[404281484,1770028244028,-740.75809701,0.000419,3]
[404281486,1770028244038,-2107.14,0.0004195,120]
[404281488,1770028244048,-152.11,0.00041971,120]
[404281490,1770028244057,-152.11,0.00042071,120]
[404281492,1770028244066,-152.11,0.00042171,120]
[404281494,1770028244078,-152.11,0.00042271,120]
[404281495,1770028244087,-152.11,0.00042371,120]
[404281497,1770028244096,-104.4708815,0.00042471,120]
[404281500,1770028244108,-47.6391185,0.00042471,120]
[404281502,1770028244117,-848.12963064,0.0004253,120]
[404281560,1770028244665,-301.260303,0.00040419,60]
[404281562,1770028244675,-71.77312436,0.0004253,120]
[404281715,1770028246104,-1187.237245,0.0004253,120]
[404281717,1770028246114,-152.33,0.00042571,120]
[404281719,1770028246124,-32498.4353872,0.00042982,3]
[404281721,1770028246133,-150.0,0.00042992,60]
[404281723,1770028246142,-1079.244493,0.00042992,60]
[404281725,1770028246151,-2008.488986,0.00042992,60]
[404281727,1770028246160,-2937.73348,0.00042992,60]
[404281729,1770028246169,-3866.977973,0.00042992,60]
[404281731,1770028246179,-4796.222466,0.00042992,60]
[404281733,1770028246190,-5725.46696,0.00042992,60]
[404281735,1770028246199,-6654.711453,0.00042992,60]
[404281737,1770028246208,-7583.955947,0.00042992,60]
[404281739,1770028246218,-8513.20044,0.00042992,60]
[404281741,1770028246230,-14101.884467,0.00043013,60]
[404281743,1770028246239,-151.0,0.00043024,120]
[404281745,1770028246249,-2107.14,0.00043109,120]
[404281747,1770028246259,-151.0,0.00043128,120]
[404281749,1770028246268,-151.0,0.00043128,120]
[404281751,1770028246277,-1560.768515,0.00043405,2]
[404281753,1770028246287,-2107.14,0.00043689,120]
[404281755,1770028246297,-151.0,0.00043755,120]
[404281758,1770028246306,-151.0,0.00043755,120]
[404281760,1770028246315,-277.50278933,0.00043813,2]
[404281762,1770028246325,-231.0,0.00043833,120]
[404281764,1770028246335,-5000.00029509,0.0004385,120]
[404281766,1770028246344,-2107.14,0.00044268,120]
[404281768,1770028246353,-151.0,0.00044511,120]
[404281770,1770028246363,-2107.14,0.00044847,120]
[404281772,1770028246372,-37245.622628,0.0004491,60]
[404281774,1770028246381,-7050.942235,0.0004491,60]
[404281776,1770028246389,-1000.0,0.00045218,2]
[404281778,1770028246399,-1000.0,0.00045218,2]
[404281780,1770028246408,-1000.0,0.00045218,2]
[404281782,1770028246417,-1000.0,0.00045218,2]
[404281784,1770028246427,-1000.0,0.00045218,2]
[404281785,1770028246436,-1000.0,0.00045218,2]
[404281788,1770028246446,-1000.0,0.00045218,2]
[404281789,1770028246455,-1000.0,0.00045218,2]
[404281792,1770028246465,-1000.0,0.00045218,2]
[404281794,1770028246474,-1000.0,0.00045218,2]
[404281796,1770028246484,-1000.0,0.00045218,2]
[404281798,1770028246493,-1000.0,0.00045218,2]
[404281799,1770028246502,-1000.0,0.00045218,2]
[404281802,1770028246512,-1000.0,0.00045218,2]
[404281803,1770028246521,-1000.0,0.00045218,2]
[404281805,1770028246532,-1000.0,0.00045218,2]
[404281807,1770028246542,-1000.0,0.00045218,2]
[404281809,1770028246551,-1000.0,0.00045218,2]
[404281811,1770028246561,-1000.0,0.00045218,2]
[404281813,1770028246572,-1000.0,0.00045218,2]
[404281815,1770028246581,-1000.0,0.00045218,2]
[404281817,1770028246590,-1000.0,0.00045218,2]
[404281819,1770028246601,-1560.768515,0.00045232,2]
[404281821,1770028246610,-720.0,0.00045349,60]
[404281824,1770028246620,-2107.14,0.00045427,120]
[404281826,1770028246630,-3619.7,0.000457,14]
[404281828,1770028246640,-258.0,0.00045833,120]
[404281830,1770028246649,-379.0410808,0.00046,120]
[404281832,1770028246658,-2107.14,0.00046006,120]
[404281834,1770028246667,-151.0,0.000464,22]
[404281836,1770028246676,-64996.8707743,0.00046555,4]
[404281838,1770028246685,-68143.46021871,0.00046565,2]
[404282060,1770028394176,300.0,0.00013673,2]
[404282061,1770028394220,693.63223956,0.00014221,2]
[404282062,1770028394293,177.78264906,0.00013699,2]
[404282063,1770028397421,500.0,0.00013273,2]
[404282064,1770028397473,1000.0,0.00013821,2]
[404282065,1770028399770,500.0,0.00013699,2]
[404282066,1770028399822,1000.0,0.00014247,2]
[404282067,1770028399872,865.78800948,0.00014795,2]
[404282071,1770028455100,500.0,0.00013273,2]
[404282090,1770028726781,5000.0,0.00018,2]
[404282093,1770028742153,5000.0,0.00018,2]
[404282094,1770028750118,1331.33241663,0.00018,2]
[404282095,1770028766450,5000.0,0.00018,2]
[404282096,1770028789170,3733.78188851,0.00018,2]
[404282097,1770028803214,500.70234007,0.00013699,2]
[404282098,1770028803302,500.65775857,0.00013699,2]
[404282099,1770028805690,150.3384121,0.00013673,2]
[404282111,1770028870129,229.04,0.00027386,120]
[404282114,1770028983960,-191.6884179,0.00017642,2]
[404282115,1770028985502,-3608.36626599,0.00017642,2]
[404282117,1770029142556,253.00347054,0.00027396,120]
[404282118,1770029153131,-629.93934409,0.00017466,2]
[404282119,1770029225081,-698.47956876,0.00017291,2]
[404282120,1770029247085,-3623.38954244,0.00017291,2]
[404282121,1770029250091,-678.1308888,0.00017291,2]
[404282122,1770029250111,-548.22527658,0.00017366,2]
[404282123,1770029250133,-3633.60596706,0.00017466,2]
[404282124,1770029250156,-150.0,0.00017731,2]
[404282125,1770029250178,-696.8822706,0.00018277,2]
[404282126,1770029250197,-300.0,0.00018777,2]
[404282127,1770029250216,-303.10001603,0.000189,2]
[404282128,1770029250235,-300.0,0.00018975,2]
[404282129,1770029250254,-1200.0,0.00018976,2]
[404282130,1770029250273,-300.0,0.00019074,2]
[404282131,1770029250292,-300.0,0.00019074,2]
[404282132,1770029250310,-300.0,0.00019074,2]
[404282133,1770029250329,-500.0,0.00019074,2]
[404282134,1770029250349,-532.06516114,0.00019074,2]
[404282135,1770029250452,-500.0,0.00019074,2]
[404282136,1770029250475,-500.0,0.00019074,2]
[404282137,1770029250499,-500.0,0.00019074,2]
[404282138,1770029250518,-500.0,0.00019074,2]
[404282139,1770029250539,-335.08666766,0.00019074,2]
[404282140,1770029250560,-500.0,0.00019074,2]
[404282141,1770029250581,-500.0,0.00019074,2]
[404282142,1770029250603,-500.0,0.00019074,2]
[404282143,1770029250624,-500.0,0.00019074,2]
[404282144,1770029250644,-500.0,0.00019074,2]
[404282145,1770029250665,-500.0,0.00019074,2]
[404282146,1770029250687,-500.0,0.00019074,2]
[404282147,1770029250707,-500.0,0.00019074,2]
[404282148,1770029250727,-500.0,0.00019074,2]
[404282149,1770029250747,-527.2845124,0.00019074,2]
[404282150,1770029250770,-500.0,0.00019074,2]
[404282151,1770029250792,-500.0,0.00019074,2]
[404282152,1770029250813,-268.18379745,0.00019074,2]
[404282153,1770029250834,-500.0,0.00019074,2]
[404282154,1770029250854,-500.0,0.00019074,2]
[404282155,1770029250878,-500.0,0.00019074,2]
[404282156,1770029250900,-500.0,0.00019074,2]
[404282157,1770029250921,-500.0,0.00019074,2]
[404282158,1770029250942,-500.0,0.00019074,2]
[404282159,1770029250963,-500.0,0.00019074,2]
[404282160,1770029250984,-500.0,0.00019074,2]
[404282161,1770029251005,-500.0,0.00019074,2]
[404282162,1770029251025,-500.0,0.00019074,2]
[404282163,1770029251046,-500.0,0.00019074,2]
[404282164,1770029251066,-500.0,0.00019074,2]
[404282165,1770029251087,-500.0,0.00019074,2]
[404282166,1770029251109,-500.0,0.00019074,2]
[404282167,1770029251131,-500.0,0.00019074,2]
[404282168,1770029251152,-500.0,0.00019074,2]
[404282169,1770029251172,-500.0,0.00019074,2]
[404282170,1770029251195,-500.0,0.00019074,2]
[404282171,1770029251217,-162.35488248,0.00019074,2]
[404282172,1770029251242,-500.0,0.00019074,2]
[404282173,1770029251272,-500.0,0.00019074,2]
[404282174,1770029251298,-500.0,0.00019074,2]
[404282175,1770029251326,-500.0,0.00019074,2]
[404282176,1770029251355,-500.0,0.00019074,2]
[404282177,1770029251383,-500.0,0.00019074,2]
[404282178,1770029251412,-500.0,0.00019074,2]
[404282179,1770029251439,-500.0,0.00019074,2]
[404282180,1770029251466,-500.0,0.00019077,2]
[404282181,1770029251495,-500.0,0.00019078,2]
[404282182,1770029251522,-300.0,0.00019079,2]
[404282183,1770029251551,-300.0,0.00019079,2]
[404282184,1770029251581,-300.0,0.00019079,2]
[404282185,1770029251611,-300.0,0.00019079,2]
[404282186,1770029251641,-300.0,0.00019079,2]
[404282187,1770029251669,-300.0,0.00019079,2]
[404282188,1770029251694,-300.0,0.00019079,2]
[404282189,1770029251723,-300.0,0.00019079,2]
[404282190,1770029251750,-300.0,0.00019079,2]
[404282191,1770029251776,-300.0,0.00019079,2]
[404282192,1770029251803,-300.0,0.00019079,2]
[404282193,1770029251827,-300.0,0.00019079,2]
[404282194,1770029251853,-300.0,0.00019079,2]
[404282195,1770029251880,-300.0,0.00019079,2]
[404282196,1770029251907,-300.0,0.00019079,2]
[404282197,1770029251931,-151.55000804,0.00019089,2]
[404282198,1770029251957,-453.13347889,0.00019352,2]
[404282199,1770029251981,-500.0,0.00019459,2]
[404282200,1770029252005,-500.0,0.00019459,2]
[404282201,1770029252030,-600.0,0.0001946,2]
[404282202,1770029252054,-177.0,0.00019731,2]
[404282203,1770029252078,-500.0,0.00019999,2]
[404282204,1770029252102,-529.65,0.00019999,2]
[404282205,1770029252125,-261.71885378,0.00019999,2]
[404282206,1770029252148,-500.0,0.00019999,2]
[404282207,1770029252264,-500.0,0.00019999,2]
[404282208,1770029252289,-500.0,0.00019999,2]
[404282209,1770029252310,-500.0,0.00019999,2]
[404282210,1770029252332,-500.0,0.00019999,2]
[404282211,1770029252352,-500.0,0.00019999,2]
[404282212,1770029252373,-500.0,0.00019999,2]
[404282213,1770029252393,-500.0,0.00019999,2]
[404282214,1770029252413,-500.0,0.00019999,2]
[404282215,1770029252433,-500.0,0.00019999,2]
[404282216,1770029252453,-500.0,0.00019999,2]
[404282217,1770029252474,-584.93,0.00019999,2]
[404282218,1770029252497,-247.89391072,0.00020325,2]
[404282219,1770029252517,-576.20553494,0.00020325,2]
[404282220,1770029252537,-469.14034037,0.00020325,2]
[404282221,1770029252559,-1167.40686982,0.00020327,2]
[404282222,1770029252577,-546.274257,0.00020608,2]
[404282223,1770029252597,-420.0,0.00020683,2]
[404282224,1770029252617,-1680.0,0.00020785,2]
[404282225,1770029252636,-420.0,0.00020789,2]
[404282226,1770029252657,-500.0,0.00020891,2]
[404282227,1770029252677,-300.0,0.00020981,2]
[404282228,1770029252700,-720.0,0.00021406,10]
[404282229,1770029252722,-204.0,0.00021731,2]
[404282230,1770029252742,-242.9725872,0.00022184,2]
[404282231,1770029252762,-587.0,0.00022545,2]
[404282232,1770029252781,-2351.0,0.00022766,2]
[404282233,1770029252804,-864.0,0.00023546,10]
[404282234,1770029252824,-231.0,0.00023731,2]
[404282235,1770029252844,-500.0,0.00024474,2]
[404282236,1770029252865,-247.69470933,0.00024474,2]
[404282237,1770029252886,-823.0,0.00024575,2]
[404282238,1770029252906,-3292.0,0.00024936,2]
[404282239,1770029252926,-1167.40686982,0.00025273,2]
[404282240,1770029252946,-258.0,0.00025731,2]
[404282241,1770029252967,-1000.0,0.00025901,10]
[404282242,1770029252987,-1152.0,0.00026787,2]
[404282243,1770029253007,-3526.0,0.00027313,2]
[404282244,1770029253028,-2979.26045723,0.00027387,2]
[404282245,1770029253049,-625.21167562,0.00027397,2]
[404282246,1770029253068,-625.21167562,0.00027397,2]
[404282247,1770029253089,-625.21167562,0.00027397,2]
[404282248,1770029253109,-625.21167562,0.00027397,2]
[404282249,1770029253130,-625.21167562,0.00027397,2]
[404282250,1770029253150,-625.21167562,0.00027397,2]
[404282251,1770029253169,-625.21167562,0.00027397,2]
[404282252,1770029253191,-625.21167562,0.00027397,2]
[404282253,1770029253210,-625.21167562,0.00027397,2]
[404282254,1770029253230,-625.21167562,0.00027397,2]
[404282255,1770029253250,-625.21167562,0.00027397,2]
[404282256,1770029253271,-625.21167562,0.00027397,2]
[404282257,1770029253290,-625.21167562,0.00027397,2]
[404282258,1770029253309,-625.21167562,0.00027397,2]
[404282259,1770029253329,-625.21167562,0.00027397,2]
[404282260,1770029253350,-625.21167562,0.00027397,2]
[404282261,1770029253372,-625.21167562,0.00027397,2]
[404282262,1770029253397,-625.21167562,0.00027397,2]
[404282263,1770029253420,-625.21167562,0.00027397,2]
[404282264,1770029253445,-625.21167562,0.00027397,2]
[404282265,1770029253467,-625.21167562,0.00027397,2]
[404282266,1770029253493,-625.21167562,0.00027397,2]
[404282267,1770029253513,-625.21167562,0.00027397,2]
[404282268,1770029253534,-625.21167562,0.00027397,2]
[404282269,1770029253556,-625.21167562,0.00027397,2]
[404282270,1770029253582,-625.21167562,0.00027397,2]
[404282271,1770029253602,-625.21167562,0.00027397,2]
[404282272,1770029253624,-625.21167562,0.00027397,2]
[404282273,1770029253646,-625.21167562,0.00027397,2]
[404282274,1770029253667,-625.21167562,0.00027397,2]
[404282275,1770029253686,-625.21167562,0.00027397,2]
[404282276,1770029253707,-625.21167562,0.00027397,2]
[404282277,1770029253729,-625.21167562,0.00027397,2]
[404282278,1770029253752,-625.21167562,0.00027397,2]
[404282279,1770029253773,-625.21167562,0.00027397,2]